lending/lending_fUSD_20250808
["ID","MTS","AMOUNT","RATE_DAILY","PERIOD"]
[377944418,1754623840013,-8532.27390625,0.00018888,2]
[377944420,1754623840022,-400.0,0.00018888,2]
[377944422,1754623840031,-400.0,0.00018888,2]
[377944424,1754623840040,-848.42,0.00018888,2]
[377944426,1754623840050,-400.0,0.00018888,2]
[377944428,1754623840059,-400.0,0.00018888,2]
[377944430,1754623840069,-674.49,0.00018888,2]
[377944432,1754623840078,-400.0,0.00018888,2]
[377944434,1754623840088,-490.1,0.00018888,2]
[377944437,1754623840097,-456.69027969,0.00018888,2]
[377944439,1754623840107,-400.0,0.00018888,2]
[377944441,1754623840117,-400.0,0.00018888,2]
[377944443,1754623840126,-431.16,0.00018888,2]
[377944444,1754623840136,-400.0,0.00018888,2]
[377944447,1754623840146,-400.0,0.00018888,2]
[377944449,1754623840156,-400.0,0.00018888,2]
[377944451,1754623840165,-690.54,0.00018888,2]
[377944453,1754623840174,-602.6,0.00018888,2]
[377944455,1754623840184,-448.08,0.00018888,2]
[377944457,1754623840193,-400.0,0.00018888,2]
[377944459,1754623840202,-730.0,0.00018888,2]
[377944461,1754623840212,-400.0,0.00018888,2]
[377944463,1754623840221,-779.21,0.00018888,2]
[377944464,1754623840230,-400.0,0.00018888,2]
[377944467,1754623840239,-1017.48,0.00018888,2]
[377944469,1754623840248,-955.42,0.00018888,2]
[377944470,1754623840258,-400.0,0.00018888,2]
[377944472,1754623840268,-400.0,0.00018888,2]
[377944474,1754623840277,-660.27,0.00018888,2]
[377944476,1754623840286,-400.0,0.00018888,2]
[377944478,1754623840296,-689.19,0.00018888,2]
[377944481,1754623840309,-604.17,0.00018888,2]
[377944482,1754623840322,-400.0,0.00018888,2]
[377944484,1754623840331,-826.67,0.00018888,2]
[377944486,1754623840341,-785.26,0.00018888,2]
[377944489,1754623840351,-400.0,0.00018888,2]
[377944491,1754623840361,-400.0,0.00018888,2]
[377944493,1754623840371,-1035.79,0.00018888,2]
[377944495,1754623840382,-435.74,0.00018888,2]
[377944497,1754623840392,-840.38,0.00018888,2]
[377944499,1754623840401,-546.52,0.00018888,2]
[377944501,1754623840411,-404.71,0.00018888,2]
[377944503,1754623840420,-519.96,0.00018888,2]
[377944505,1754623840432,-400.0,0.00018888,2]
[377944507,1754623840441,-937.47,0.00018888,2]
[377944509,1754623840450,-400.0,0.00018888,2]
[377944511,1754623840459,-775.31,0.00018888,2]
[377944513,1754623840472,-400.0,0.00018888,2]
[377944515,1754623840481,-1086.9845178,0.00018888,2]
[377944729,1754623842620,-230.3654822,0.00018888,2]
[377944731,1754623842630,-714.11,0.00018888,2]
[377944733,1754623842639,-886.99,0.00018888,2]
[377944735,1754623842649,-1260.75,0.00018888,2]
[377944738,1754623842658,-879.84,0.00018888,2]
[377944741,1754623842668,-699.53,0.00018888,2]
[377944743,1754623842677,-400.0,0.00018888,2]
[377944745,1754623842687,-436.77,0.00018888,2]
[377944747,1754623842696,-173.61982496,0.00018888,2]
[377944749,1754623842708,-228.07430156,0.00018888,2]
[377944751,1754623842717,-803.42,0.00018888,2]
[377944753,1754623842726,-660.36,0.00018888,2]
[377944755,1754623842736,-616.39950886,0.00018888,2]
[377944761,1754623842783,-63.07049114,0.00018888,2]
[377944763,1754623842791,-585.65,0.00018888,2]
[377944765,1754623842801,-948.68,0.00018888,2]
[377944767,1754623842810,-1110.29,0.00018888,2]
[377944769,1754623842819,-400.0,0.00018888,2]
[377944771,1754623842829,-400.0,0.00018888,2]
[377944773,1754623842839,-916.69,0.00018888,2]
[377944775,1754623842847,-794.89,0.00018888,2]
[377944777,1754623842857,-1707.47,0.00018888,2]
[377944779,1754623842866,-400.0,0.00018888,2]
[377944781,1754623842876,-665.99,0.00018888,2]
[377944783,1754623842885,-400.0,0.00018888,2]
[377944785,1754623842895,-1161.87,0.00018888,2]
[377944787,1754623842904,-1261.67,0.00018888,2]
[377944789,1754623842913,-400.0,0.00018888,2]
[377944791,1754623842923,-2127.42,0.00018888,2]
[377944793,1754623842934,-775.05,0.00018888,2]
[377944795,1754623842943,-636.69,0.00018888,2]
[377944797,1754623842954,-727.23,0.00018888,2]
[377944799,1754623842963,-994.32,0.00018888,2]
[377944801,1754623842973,-1165.08,0.00018888,2]
[377944803,1754623842982,-1985.13,0.00018888,2]
[377944805,1754623842991,-1053.36,0.00018888,2]
[377944807,1754623843001,-400.0,0.00018888,2]
[377944809,1754623843012,-901.6,0.00018888,2]
[377944811,1754623843021,-599.47,0.00018888,2]
[377944813,1754623843030,-510.97,0.00018888,2]
[377944815,1754623843039,-790.94,0.00018888,2]
[377944817,1754623843048,-695.05,0.00018888,2]
[377944819,1754623843058,-760.82,0.00018888,2]
[377944822,1754623843067,-761.4,0.00018888,2]
[377944824,1754623843076,-414.21424015,0.00018888,2]
[377944826,1754623843085,-400.0,0.00018888,2]
[377944828,1754623843094,-877.13,0.00018888,2]
[377944830,1754623843103,-563.05,0.00018888,2]
[377944832,1754623843112,-627.77,0.00018888,2]
[377944834,1754623843121,-777.25,0.00018888,2]
[377944837,1754623843131,-1402.5,0.00018888,2]
[377944840,1754623843140,-758.3,0.00018888,2]
[377944842,1754623843149,-959.35,0.00018888,2]
[377944844,1754623843158,-1047.82,0.00018888,2]
[377944846,1754623843167,-953.94,0.00018888,2]
[377944848,1754623843176,-720.17,0.00018888,2]
[377944850,1754623843185,-766.29,0.00018888,2]
[377944852,1754623843195,-1124.87,0.00018888,2]
[377944854,1754623843204,-915.37,0.00018888,2]
[377944856,1754623843214,-916.67,0.00018888,2]
[377944858,1754623843223,-1485.41,0.00018888,2]
[377944860,1754623843233,-400.0,0.00018888,2]
[377944862,1754623843243,-750.12,0.00018888,2]
[377944864,1754623843252,-662.13,0.00018888,2]
[377944866,1754623843262,-1214.18,0.00018888,2]
[377944868,1754623843271,-867.96,0.00018888,2]
[377944870,1754623843281,-400.0,0.00018888,2]
[377944872,1754623843290,-1280.78,0.00018888,2]
[377944874,1754623843299,-747.39,0.00018888,2]
[377944876,1754623843314,-522.03,0.00018888,2]
[377944878,1754623843323,-400.0,0.00018888,2]
[377944880,1754623843333,-697.86,0.00018888,2]
[377944882,1754623843344,-836.17,0.00018888,2]
[377944884,1754623843355,-1984.25,0.00018888,2]
[377944886,1754623843364,-1528.25,0.00018888,2]
[377944888,1754623843374,-1467.1,0.00018888,2]
[377944890,1754623843383,-452.0,0.00018888,2]
[377944892,1754623843394,-686.47,0.00018888,2]
[377944895,1754623843404,-1356.34,0.00018888,2]
[377944896,1754623843413,-884.89,0.00018888,2]
[377944898,1754623843422,-465.8,0.00018888,2]
[377944901,1754623843432,-400.0,0.00018888,2]
[377944903,1754623843441,-677.42,0.00018888,2]
[377944904,1754623843450,-1346.2,0.00018888,2]
[377944907,1754623843459,-2276.08,0.00018888,2]
[377944909,1754623843469,-6207.62,0.00018888,2]
[377944911,1754623843478,-1140.24,0.00018888,2]
[377944912,1754623843487,-400.0,0.00018888,2]
[377944914,1754623843497,-400.0,0.00018888,2]
[377944917,1754623843506,-498.66,0.00018888,2]
[377944919,1754623843515,-400.0,0.00018888,2]
[377944921,1754623843525,-551.35,0.00018888,2]
[377944923,1754623843534,-708.46,0.00018888,2]
[377944925,1754623843543,-1924.7,0.00018888,2]
[377944927,1754623843555,-1278.14,0.00018888,2]
[377944929,1754623843565,-400.0,0.00018888,2]
[377944932,1754623843574,-400.0,0.00018888,2]
[377944934,1754623843584,-400.0,0.00018888,2]
[377944936,1754623843593,-400.0,0.00018888,2]
[377944938,1754623843603,-400.0,0.00018888,2]
[377944940,1754623843612,-400.0,0.00018888,2]
[377944942,1754623843621,-460.58,0.00018888,2]
[377944944,1754623843631,-367.01301012,0.00018888,2]
[377944946,1754623843639,-400.0,0.00018888,2]
[377944948,1754623843648,-753.62,0.00018888,2]
[377944950,1754623843657,-183.28108907,0.00018888,2]
[377944952,1754623843667,-1091.86,0.00018888,2]
[377944954,1754623843676,-524.74,0.00018888,2]
[377944956,1754623843686,-400.0,0.00018888,2]
[377944958,1754623843695,-402.146904,0.00018889,2]
[377944960,1754623843704,-497.552696,0.00018889,2]
[377944962,1754623843714,-400.0,0.00018889,2]
[377944964,1754623843723,-400.0,0.00018889,2]
[377944966,1754623843732,-627.09,0.00018889,2]
[377944968,1754623843742,-539.66,0.00018889,2]
[377944970,1754623843751,-400.0,0.00018889,2]
[377944972,1754623843760,-400.0,0.00018889,2]
[377944974,1754623843770,-400.0,0.00018889,2]
[377944976,1754623843779,-400.0,0.00018889,2]
[377944978,1754623843789,-400.0,0.00018889,2]
[377944980,1754623843799,-400.0,0.00018889,2]
[377944982,1754623843809,-400.0,0.00018889,2]
[377944984,1754623843818,-400.0,0.00018889,2]
[377944986,1754623843827,-432.84,0.00018889,2]
[377944988,1754623843836,-400.0,0.00018889,2]
[377944990,1754623843845,-421.0,0.00018889,2]
[377944992,1754623843855,-465.18,0.00018889,2]
[377944994,1754623843864,-400.0,0.00018889,2]
[377944996,1754623843873,-400.0,0.00018889,2]
[377944998,1754623843882,-400.0,0.00018889,2]
[377945000,1754623843891,-400.0,0.00018889,2]
[377945002,1754623843901,-400.0,0.00018889,2]
[377945004,1754623843910,-758.12,0.00018889,2]
[377945006,1754623843919,-400.0,0.00018889,2]
[377945008,1754623843929,-400.0,0.00018889,2]
[377945010,1754623843938,-400.0,0.00018889,2]
[377945012,1754623843947,-400.0,0.00018889,2]
[377945014,1754623843956,-537.87,0.00018889,2]
[377945016,1754623843965,-400.0,0.00018889,2]
[377945018,1754623843974,-489.55,0.00018889,2]
[377945020,1754623843984,-848.35,0.00018889,2]
[377945022,1754623843993,-400.0,0.00018889,2]
[377945024,1754623844003,-400.0,0.00018889,2]
[377945026,1754623844013,-404.55,0.00018889,2]
[377945028,1754623844022,-400.0,0.00018889,2]
[377945030,1754623844034,-400.0,0.00018889,2]
[377945032,1754623844043,-400.0,0.00018889,2]
[377945034,1754623844053,-400.0,0.00018889,2]
[377945036,1754623844062,-400.0,0.00018889,2]
[377945038,1754623844071,-400.0,0.00018889,2]
[377945040,1754623844081,-400.0,0.00018889,2]
[377945043,1754623844090,-400.0,0.00018889,2]
[377945045,1754623844100,-400.0,0.00018889,2]
[377945047,1754623844110,-729.96,0.00018889,2]
[377945049,1754623844120,-400.0,0.00018889,2]
[377945051,1754623844130,-400.0,0.00018889,2]
[377945053,1754623844143,-606.81,0.00018889,2]
[377945055,1754623844152,-400.0,0.00018889,2]
[377945057,1754623844161,-400.0,0.00018889,2]
[377945059,1754623844170,-523.25606001,0.00018889,2]
[377945061,1754623844178,-400.0,0.00018889,2]
[377945063,1754623844188,-400.0,0.00018889,2]
[377945065,1754623844196,-400.0,0.00018889,2]
[377945067,1754623844206,-844.73,0.00018889,2]
[377945069,1754623844215,-423.87,0.00018889,2]
[377945071,1754623844224,-400.0,0.00018889,2]
[377945073,1754623844234,-400.0,0.00018889,2]
[377945075,1754623844243,-476.27,0.00018889,2]
[377945077,1754623844252,-400.0,0.00018889,2]
[377945079,1754623844262,-400.0,0.00018889,2]
[377945081,1754623844274,-400.0,0.00018889,2]
[377945083,1754623844283,-400.0,0.00018889,2]
[377945085,1754623844292,-400.0,0.00018889,2]
[377945087,1754623844302,-552.19,0.00018889,2]
[377945089,1754623844314,-400.0,0.00018889,2]
[377945091,1754623844323,-400.0,0.00018889,2]
[377945093,1754623844332,-400.0,0.00018889,2]
[377945095,1754623844343,-400.0,0.00018889,2]
[377945097,1754623844353,-674.34,0.00018889,2]
[377945098,1754623844362,-400.0,0.00018889,2]
[377945101,1754623844372,-480.38,0.00018889,2]
[377945103,1754623844384,-406.17,0.00018889,2]
[377945105,1754623844393,-497.93,0.00018889,2]
[377945107,1754623844402,-400.0,0.00018889,2]
[377945109,1754623844411,-400.0,0.00018889,2]
[377945111,1754623844420,-400.0,0.00018889,2]
[377945113,1754623844430,-400.0,0.00018889,2]
[377945115,1754623844439,-400.0,0.00018889,2]
[377945117,1754623844448,-400.0,0.00018889,2]
[377945119,1754623844458,-400.0,0.00018889,2]
[377945121,1754623844467,-400.0,0.00018889,2]
[377945123,1754623844476,-400.0,0.00018889,2]
[377945125,1754623844485,-400.0,0.00018889,2]
[377945127,1754623844494,-454.94,0.00018889,2]
[377945129,1754623844503,-400.0,0.00018889,2]
[377945131,1754623844512,-501.57,0.00018889,2]
[377945133,1754623844521,-400.0,0.00018889,2]
[377945135,1754623844530,-400.0,0.00018889,2]
[377945137,1754623844539,-400.0,0.00018889,2]
[377945139,1754623844548,-400.0,0.00018889,2]
[377945141,1754623844558,-675.92,0.00018889,2]
[377945143,1754623844567,-400.0,0.00018889,2]
[377945145,1754623844576,-400.0,0.00018889,2]
[377945147,1754623844585,-400.0,0.00018889,2]
[377945149,1754623844594,-400.0,0.00018889,2]
[377945151,1754623844603,-542.22,0.00018889,2]
[377945153,1754623844612,-400.0,0.00018889,2]
[377945155,1754623844621,-400.0,0.00018889,2]
[377945157,1754623844630,-400.0,0.00018889,2]
[377945159,1754623844639,-474.32,0.00018889,2]
[377945161,1754623844648,-434.17,0.00018889,2]
[377945163,1754623844657,-400.0,0.00018889,2]
[377945165,1754623844666,-400.0,0.00018889,2]
[377945167,1754623844675,-400.0,0.00018889,2]
[377945169,1754623844685,-400.0,0.00018889,2]
[377945171,1754623844694,-537.05,0.00018889,2]
[377945173,1754623844703,-572.56,0.00018889,2]
[377945175,1754623844713,-774.84,0.00018889,2]
[377945177,1754623844722,-400.0,0.00018889,2]
[377945179,1754623844731,-867.67,0.00018889,2]
[377945181,1754623844740,-400.0,0.00018889,2]
[377945183,1754623844749,-625.26,0.00018889,2]
[377945185,1754623844758,-400.0,0.00018889,2]
[377945187,1754623844767,-418.22,0.00018889,2]
[377945189,1754623844776,-400.0,0.00018889,2]
[377945191,1754623844785,-400.0,0.00018889,2]
[377945193,1754623844794,-667.53,0.00018889,2]
[377945195,1754623844803,-400.0,0.00018889,2]
[377945197,1754623844814,-403.14,0.00018889,2]
[377945199,1754623844823,-842.6,0.00018889,2]
[377945201,1754623844832,-400.0,0.00018889,2]
[377945203,1754623844841,-400.0,0.00018889,2]
[377945205,1754623844850,-400.0,0.00018889,2]
[377945207,1754623844859,-400.0,0.00018889,2]
[377945209,1754623844868,-532.91,0.00018889,2]
[377945211,1754623844877,-1000.0,0.00018889,2]
[377945213,1754623844886,-466.38,0.00018889,2]
[377945215,1754623844895,-785.96,0.00018889,2]
[377945217,1754623844904,-526.95,0.00018889,2]
[377945219,1754623844913,-400.0,0.00018889,2]
[377945221,1754623844922,-400.0,0.00018889,2]
[377945223,1754623844932,-400.0,0.00018889,2]
[377945225,1754623844941,-660.28,0.00018889,2]
[377945227,1754623844950,-1342.22,0.00018889,2]
[377945229,1754623844959,-648.06,0.00018889,2]
[377945231,1754623844969,-577.86,0.00018889,2]
[377945233,1754623844978,-632.51,0.00018889,2]
[377945235,1754623844988,-413.82,0.00018889,2]
[377945237,1754623844997,-400.0,0.00018889,2]
[377945239,1754623845007,-500.0,0.00018889,2]
[377945241,1754623845017,-408.17,0.00018889,2]
[377945243,1754623845026,-1125.38,0.00018889,2]
[377945245,1754623845035,-680.56,0.00018889,2]
[377945246,1754623845044,-665.88,0.00018889,2]
[377945247,1754623845054,-456.08,0.00018889,2]
[377945248,1754623845064,-400.0,0.00018889,2]
[377945249,1754623845073,-400.0,0.00018889,2]
[377945250,1754623845082,-706.55,0.00018889,2]
[377945251,1754623845092,-400.0,0.00018889,2]
[377945252,1754623845103,-400.0,0.00018889,2]
[377945253,1754623845113,-433.22,0.00018889,2]
[377945254,1754623845123,-400.0,0.00018889,2]
[377945255,1754623845132,-400.0,0.00018889,2]
[377945256,1754623845141,-400.0,0.00018889,2]
[377945257,1754623845151,-413.39,0.00018889,2]
[377945259,1754623845160,-647.39,0.00018889,2]
[377945261,1754623845170,-642.55,0.00018889,2]
[377945263,1754623845179,-984.31,0.00018889,2]
[377945265,1754623845189,-400.0,0.00018889,2]
[377945267,1754623845199,-400.0,0.00018889,2]
[377945269,1754623845209,-400.0,0.00018889,2]
[377945271,1754623845218,-400.0,0.00018889,2]
[377945273,1754623845227,-210.417402,0.00018889,2]
[377945275,1754623845236,-1327.98,0.00018889,2]
[377945277,1754623845246,-400.0,0.00018889,2]
[377945279,1754623845255,-400.0,0.00018889,2]
[377945281,1754623845264,-1085.22,0.00018889,2]
[377945283,1754623845274,-400.0,0.00018889,2]
[377945285,1754623845283,-400.0,0.00018889,2]
[377945306,1754623845460,-400.0,0.00018889,2]
[377945308,1754623845471,-573.55,0.00018889,2]
[377945310,1754623845481,-492.35,0.00018889,2]
[377945313,1754623845490,-890.12,0.00018889,2]
[377945316,1754623845499,-400.0,0.00018889,2]
[377945319,1754623845508,-400.0,0.00018889,2]
[377945321,1754623845517,-970.42,0.00018889,2]
[377945323,1754623845527,-723.04,0.00018889,2]
[377945325,1754623845535,-400.0,0.00018889,2]
[377945327,1754623845545,-2822.4,0.00018889,2]
[377945329,1754623845554,-701.79,0.00018889,2]
[377945331,1754623845563,-952.27,0.00018889,2]
[377945333,1754623845572,-875.94,0.00018889,2]
[377945335,1754623845582,-400.0,0.00018889,2]
[377945337,1754623845591,-400.0,0.00018889,2]
[377945339,1754623845600,-400.0,0.00018889,2]
[377945341,1754623845609,-400.0,0.00018889,2]
[377945343,1754623845619,-151.925717,0.00018889,2]
[377945345,1754623845628,-776.89,0.00018889,2]
[377945347,1754623845637,-400.0,0.00018889,2]
[377945349,1754623845646,-400.0,0.00018889,2]
[377945351,1754623845656,-400.0,0.00018889,2]
[377945353,1754623845670,-400.0,0.00018889,2]
[377945355,1754623845682,-402.06726838,0.00018889,2]
[377945357,1754623845692,-400.0,0.00018889,2]
[377945359,1754623845701,-400.0,0.00018889,2]
[377945361,1754623845712,-1067.04,0.00018889,2]
[377945363,1754623845721,-992.28,0.00018889,2]
[377945365,1754623845730,-437.44,0.00018889,2]
[377945367,1754623845740,-808.46,0.00018889,2]
[377945369,1754623845749,-400.0,0.00018889,2]
[377945371,1754623845759,-1184.92,0.00018889,2]
[377945373,1754623845768,-879.9,0.00018889,2]
[377945375,1754623845777,-400.0,0.00018889,2]
[377945377,1754623845786,-539.38,0.00018889,2]
[377945379,1754623845795,-1073.4,0.00018889,2]
[377945381,1754623845805,-1253.89,0.00018889,2]
[377945383,1754623845814,-400.0,0.00018889,2]
[377945385,1754623845824,-908.32,0.00018889,2]
[377945387,1754623845833,-473.27,0.00018889,2]
[377945389,1754623845842,-800.01,0.00018889,2]
[377945391,1754623845851,-653.24,0.00018889,2]
[377945393,1754623845860,-551.97,0.00018889,2]
[377945395,1754623845869,-897.96,0.00018889,2]
[377945397,1754623845879,-400.0,0.00018889,2]
[377945399,1754623845888,-400.0,0.00018889,2]
[377945401,1754623845897,-929.76,0.00018889,2]
[377945403,1754623845907,-1240.47,0.00018889,2]
[377945405,1754623845916,-1072.7,0.00018889,2]
[377945407,1754623845925,-400.0,0.00018889,2]
[377945409,1754623845936,-1097.65,0.00018889,2]
[377945411,1754623845945,-1231.9,0.00018889,2]
[377945413,1754623845954,-400.0,0.00018889,2]
[377945415,1754623845964,-400.0,0.00018889,2]
[377945417,1754623845973,-400.0,0.00018889,2]
[377945419,1754623845987,-400.0,0.00018889,2]
[377945421,1754623845997,-844.26,0.00018889,2]
[377945423,1754623846006,-581.58,0.00018889,2]
[377945425,1754623846015,-400.0,0.00018889,2]
[377945427,1754623846025,-400.0,0.00018889,2]
[377945429,1754623846034,-641.82,0.00018889,2]
[377945431,1754623846043,-400.0,0.00018889,2]
[377945433,1754623846053,-461.03,0.00018889,2]
[377945435,1754623846062,-1020.02,0.00018889,2]
[377945437,1754623846071,-400.0,0.00018889,2]
[377945439,1754623846081,-877.7,0.00018889,2]
[377945441,1754623846090,-400.0,0.00018889,2]
[377945443,1754623846100,-1272.2,0.00018889,2]
[377945445,1754623846109,-400.0,0.00018889,2]
[377945447,1754623846119,-400.0,0.00018889,2]
[377945449,1754623846128,-627.97,0.00018889,2]
[377945451,1754623846137,-519.87,0.00018889,2]
[377945453,1754623846147,-1292.22,0.00018889,2]
[377945455,1754623846156,-400.0,0.00018889,2]
[377945457,1754623846165,-920.76,0.00018889,2]
[377945459,1754623846175,-732.95,0.00018889,2]
[377945461,1754623846185,-887.93,0.00018889,2]
[377945463,1754623846194,-400.0,0.00018889,2]
[377945465,1754623846204,-769.61,0.00018889,2]
[377945467,1754623846213,-1162.2,0.00018889,2]
[377945469,1754623846223,-400.0,0.00018889,2]
[377945471,1754623846232,-536.61,0.00018889,2]
[377945473,1754623846242,-400.0,0.00018889,2]
[377945475,1754623846252,-725.93,0.00018889,2]
[377945477,1754623846262,-400.0,0.00018889,2]
[377945479,1754623846271,-400.0,0.00018889,2]
[377945481,1754623846280,-856.22,0.00018889,2]
[377945483,1754623846289,-151.0,0.00018889,2]
[377945485,1754623846299,-151.0,0.00018889,2]
[377945487,1754623846311,-969.21,0.00018889,2]
[377945489,1754623846325,-400.0,0.00018889,2]
[377945491,1754623846335,-1618.36,0.00018889,2]
[377945493,1754623846347,-154.289948,0.00018889,2]
[377945495,1754623846357,-1108.3,0.00018889,2]
[377945497,1754623846369,-611.03,0.00018889,2]
[377945499,1754623846381,-400.0,0.00018889,2]
[377945501,1754623846390,-400.0,0.00018889,2]
[377945503,1754623846400,-497.57,0.00018889,2]
[377945505,1754623846409,-942.05,0.00018889,2]
[377945507,1754623846419,-1040.88,0.00018889,2]
[377945509,1754623846429,-1101.52,0.00018889,2]
[377945511,1754623846439,-583.62,0.00018889,2]
[377945513,1754623846448,-718.72,0.00018889,2]
[377945515,1754623846458,-1250.19,0.00018889,2]
[377945517,1754623846468,-1373.46542162,0.00018889,2]
[377945575,1754623847001,-404.3835385,0.00018889,2]
[377945577,1754623847012,-306.75103988,0.00018889,2]
[377945579,1754623847021,-7.2397624,0.00018889,2]
[377945582,1754623847036,-392.7602376,0.00018889,2]
[377945584,1754623847046,-400.0,0.00018889,2]
[377945586,1754623847055,-400.0,0.00018889,2]
[377945588,1754623847065,-1425.28,0.00018889,2]
[377945590,1754623847074,-709.02,0.00018889,2]
[377945592,1754623847083,-414.1,0.00018889,2]
[377945594,1754623847092,-998.83,0.00018889,2]
[377945596,1754623847101,-537.99,0.00018889,2]
[377945598,1754623847111,-400.0,0.00018889,2]
[377945600,1754623847120,-400.0,0.00018889,2]
[377945602,1754623847129,-736.23,0.00018889,2]
[377945604,1754623847138,-400.0,0.00018889,2]
[377945606,1754623847147,-400.0,0.00018889,2]
[377945608,1754623847157,-1676.56,0.00018889,2]
[377945610,1754623847167,-1053.75,0.00018889,2]
[377945612,1754623847176,-719.88,0.00018889,2]
[377945614,1754623847189,-400.0,0.00018889,2]
[377945616,1754623847199,-502.3,0.00018889,2]
[377945618,1754623847208,-654.77,0.00018889,2]
[377945620,1754623847217,-400.0,0.00018889,2]
[377945623,1754623847226,-400.0,0.00018889,2]
[377945625,1754623847235,-909.85,0.00018889,2]
[377945626,1754623847245,-781.37,0.00018889,2]
[377945628,1754623847255,-459.16169166,0.00018889,2]
[377945631,1754623847265,-509.25,0.00018889,2]
[377945633,1754623847279,-736.59,0.00018889,2]
[377945635,1754623847289,-1540.89,0.00018889,2]
[377945637,1754623847299,-400.0,0.00018889,2]
[377945639,1754623847312,-632.6,0.00018889,2]
[377945641,1754623847321,-604.89,0.00018889,2]
[377945643,1754623847331,-611.81,0.00018889,2]
[377945645,1754623847340,-1537.7,0.00018889,2]
[377945647,1754623847351,-400.0,0.00018889,2]
[377945649,1754623847361,-703.73,0.00018889,2]
[377945651,1754623847370,-739.34,0.00018889,2]
[377945653,1754623847379,-1365.51,0.00018889,2]
[377945655,1754623847390,-400.0,0.00018889,2]
[377945657,1754623847399,-746.53,0.00018889,2]
[377945659,1754623847409,-1524.61,0.00018889,2]
[377945661,1754623847418,-1277.15,0.00018889,2]
[377945663,1754623847428,-400.0,0.00018889,2]
[377945665,1754623847442,-1789.48,0.00018889,2]
[377945668,1754623847452,-400.0,0.00018889,2]
[377945670,1754623847461,-665.68,0.00018889,2]
[377945693,1754623847470,-466.1,0.00018889,2]
[377945695,1754623847677,-400.0,0.00018889,2]
[377945698,1754623847696,-400.0,0.00018889,2]
[377945700,1754623847705,-842.18,0.00018889,2]
[377945702,1754623847714,-1200.67,0.00018889,2]
[377945704,1754623847723,-531.11,0.00018889,2]
[377945706,1754623847732,-769.52,0.00018889,2]
[377945708,1754623847742,-1222.51,0.00018889,2]
[377945710,1754623847752,-1292.85,0.00018889,2]
[377945712,1754623847762,-837.84,0.00018889,2]
[377945714,1754623847771,-311.82635893,0.00018889,2]
[377945716,1754623847780,-1472.36,0.00018889,2]
[377945718,1754623847790,-400.0,0.00018889,2]
[377945720,1754623847799,-1025.34,0.00018889,2]
[377945722,1754623847808,-60.96067293,0.00018889,2]
[377945797,1754623848636,-339.03932707,0.00018889,2]
[377945799,1754623848646,-400.0,0.00018889,2]
[377945801,1754623848655,-498.87,0.00018889,2]
[377945803,1754623848664,-452.03,0.00018889,2]
[377945805,1754623848673,-790.73,0.00018889,2]